Cogmind - Beta 13 @@@ ROGUE MODE // 2024.06.04 @ 12:07:14 Player: Kat Result: Destroyed by D-53 Grenadier with Mini Grenade Launcher Performance ------------- Evolutions (0) 0 Regions Visited (2) 400 Robots Destroyed (19) 95 Value Destroyed (239) 239 Prototype IDs (0) 0 Alien Tech Used (0) 0 Bonus (0) 0 TOTAL SCORE: 734 Bonus ------- None Cogmind --------- Core Integrity 0/250 Matter 262/300 Energy 100/100 System Corruption 5% Temperature Cool (0) Movement Treading (240) Ox1 Location -10/Mines Parts ------- > --- POWER (1) -------- (None) > --- PROPULSION (2) --- Light Treads > --- UTILITY (2) ------ Large Storage Unit > --- WEAPON (2) ------- Pulse Rifle > --- INVENTORY (15) --- Light Treads Light Treads Improved Heat Sink High-capacity Matter Pod (200) Sensor Array Sensor Array Utility Shielding Assault Rifle Assault Rifle Assault Rifle Assault Rifle Light Cannon Concussive RPG (1) Improved Datajack Hammer Peak State ------------ > --- POWER ------------ Light Ion Engine > --- PROPULSION ------- Light Treads Light Treads > --- UTILITY ---------- Large Storage Unit Improved Targeting Computer > --- WEAPON ----------- Ion Cannon Concussive RPG > --- INVENTORY -------- Light Treads Light Treads Improved Heat Sink High-capacity Matter Pod Sensor Array Sensor Array Utility Shielding Pulse Rifle Assault Rifle Assault Rifle Assault Rifle Assault Rifle Light Cannon Improved Datajack Hammer [Rating: 14] Favorites ----------- Power Light Ion Engine Engine Light Ion Engine Propulsion Aluminum Leg Treads Light Treads Leg Aluminum Leg Utility Large Storage Unit Device Sensor Array Storage Large Storage Unit Processor Improved Targeting Computer Weapon Light Cannon Energy Gun Medium Laser Energy Cannon Ion Cannon Ballistic Cannon Light Cannon Launcher Grenade Launcher Impact Weapon Hammer Build | -11 -10 -10 ------- Run | Yrd Mat Min Slots Evolved . | . . . Power . | . . . Propulsion . | . . . Utility . | . . . Weapon . | . . . Parts Attached 27 | 7 17 3 Power 2 | 1 1 . Engine 2 | 1 1 . Core . | . . . Reactor . | . . . Propulsion 8 | 2 6 . Treads 2 | . 2 . Leg 6 | 2 4 . Wheel . | . . . Hover . | . . . Flight . | . . . Utility 8 | 2 6 . Device 4 | 1 3 . Storage 3 | 1 2 . Processor 1 | . 1 . Hackware . | . . . Protection . | . . . Artifact . | . . . Weapon 9 | 2 4 3 Energy Gun 4 | 2 1 1 Energy Cannon 1 | . . 1 Ballistic Gun . | . . . Ballistic Cannon 1 | . 1 . Launcher 2 | . 1 1 Special Weapon . | . . . Impact Weapon 1 | . 1 . Slashing Weapon . | . . . Piercing Weapon . | . . . Special Melee Weapon . | . . . Unidentified Prototypes . | . . . Parts Lost 6 | . 2 4 Power 1 | . . 1 Propulsion 1 | . . 1 Utility 2 | . 1 1 Weapon 2 | . 1 1 Highest Loss Streak 4 | . 1 4 To Critical Strikes . | . . . Average Slot Usage (%) 96 | . 97 96 Engine 13 | . 14 12 Treads 12 | . 7 28 Leg 15 | . 20 . Device 9 | . 12 . Storage 14 | . 14 14 Processor 4 | . 1 12 Energy Gun 6 | . 8 2 Ballistic Cannon 8 | . 6 11 Launcher 7 | . 6 11 Impact Weapon 3 | . 4 . Naked Turns . | . . . Heaviest Build 32 | 15 30 32 Greatest Support 40 | 20 40 40 Greatest Overweight (x) 3 | 3 . . Average Overweight (x) . | . . . Largest Inventory Capacity 15 | 8 15 15 Average Capacity 11 | 7 10 15 Most Carried 15 | 5 14 15 Average Carried 9 | 3 8 14 Final Capacity 15 | 8 15 15 Final Carried 15 | 4 14 15 Class Distribution -------------------- 100% | Mutant Dominant Class ---------------- Mutant | -10/Materials Mutant | -10/Mines Resources | -11 -10 -10 ----------- Run | Yrd Mat Min Matter Collected 715 | 270 445 . Remotely . | . . . Salvage Created 466 | 100 366 . Parts 26 | 3 23 . Haulers Intercepted 1 | . 1 . Recyclers Shooed 5 | . 3 2 Parts Field Recycled . | . . . Retrieved Matter . | . . . Parts Self-Destructed . | . . . Prevented . | . . . Kills | -11 -10 -10 ------- Run | Yrd Mat Min Combat Hostiles Destroyed 8 | . 8 . Melee 5 | . 5 . Classes Destroyed 8 | 2 6 . Worker 3 | . 3 . Tunneler 1 | 1 . . Hauler 1 | . 1 . Recycler 2 | 1 1 . Operator 1 | . 1 . Watcher 3 | . 3 . Swarmer 6 | . 6 . Grunt 2 | . 2 . Best Kill Streak 6 | 2 6 . Combat Bots Only 5 | . 5 . Max Kills in Single Turn 2 | 2 2 . Gunslinging . | . . . Exploded . | . . . Melee 1 | . 1 . Uniques/NPCs Destroyed . | . . . Combat | -11 -10 -10 -------- Run | Yrd Mat Min Hostile Shots Fired 57 | . 39 18 Missed 11 | . 9 2 Damage Taken 1229 | . 326 903 Core 273 | . 41 232 Absorbed by Shields . | . . . Regen/Repaired (Parts) 35 | . 35 . Core Remaining (%) 100 | 100 . . Volleys Fired 26 | 11 15 . Largest 2 | 2 2 . Hottest 90 | 90 90 . Shots Fired 43 | 20 23 . Gun 28 | 20 8 . Cannon 10 | . 10 . Launcher 5 | . 5 . Special . | . . . Kinetic 10 | . 10 . Thermal 14 | 11 3 . Explosive 5 | . 5 . Electromagnetic 14 | 9 5 . Robot Hit Streak 3 | 3 1 . Robot Miss Streak 6 | 4 6 . Penetration Max . | . . . Secondary Targets . | . . . Shots Hit Robots 38 | 10 28 . Core Hits 16 | 3 13 . Critical Kills 2 | . 2 . Critical Parts Destroyed 3 | . 3 . Critical Strikes 6 | 1 5 . Burn 1 | 1 . . Smash 5 | . 5 . Melee Attacks 33 | . 33 . Impact 33 | . 33 . Slashing . | . . . Piercing . | . . . Sneak Attacks 4 | . 4 . Combat Hostiles . | . . . Follow-up Attacks . | . . . Damage Inflicted 1091 | 180 889 22 Guns 236 | 180 56 . Cannons 34 | . 34 . Explosions 144 | . 144 . Melee 655 | . 655 . Ramming 22 | . . 22 Kinetic 34 | . 34 . Thermal 161 | 101 60 . Explosive 110 | . 110 . Electromagnetic 109 | 79 30 . Impact 655 | . 655 . Slashing . | . . . Piercing . | . . . Highest Corruption 5 | . 4 5 Average Corruption 4 | . 3 4 Corruption Purged . | . . . Corruption Blocked . | . . . Effects 13 | . 6 7 Message Errors 4 | . 1 3 Matter Fused 5 | . 2 3 Energy Discharges 1 | . . 1 Data Loss (minor) 2 | . 2 . Data Loss (major) 1 | . 1 . Overload Shots . | . . . Overflow Damage 120 | . 120 . Projectiles . | . . . Explosions . | . . . Melee 120 | . 120 . Knockbacks 2 | . 2 . Impact 2 | . 2 . Kinetic . | . . . Secondary . | . . . Self-Inflicted Damage 31 | . 31 . Shots 1 | . 1 . Rammed 3 | . . 3 Targets Rammed 3 | . . 3 Kicked . | . . . Crushed . | . . . Highest Temperature 270 | 270 60 . Average Temperature 81 | 126 13 . Received Heat Transfer 66 | . 66 . Effects 2 | 2 . . Interference 2 | 2 . . Siege Activations . | . . . Robots Corrupted . | . . . Combat Hostiles . | . . . Parts Fried 5 | . 5 . Impact Corruptions 8 | . 8 . Robots Melted . | . . . Combat Hostiles . | . . . Parts Melted . | . . . Heat Transferred 444 | 370 74 . Parts Sabotaged . | . . . Parts Stolen . | . . . Parts Stripped . | . . . Power Chain Reactions 1 | . 1 . Alert | -11 -10 -10 ------- Run | Yrd Mat Min Peak Influence 244 | 10 244 17 Initial 6 | . 6 2 Average 56 | 2 81 2 Maximum Alert Level 1 | . 1 . Low Security (%) 95 | 100 93 100 Level 1 4 | . 6 . Level 2 . | . . . Level 3 . | . . . Level 4 . | . . . Level 5 . | . . . High Security . | . . . Max Security . | . . . Squads Dispatched 1 | . . 1 Investigation 1 | . . 1 Extermination . | . . . Reinforcement . | . . . Assault . | . . . Garrison . | . . . Intercept . | . . . Searches Triggered . | . . . Construction Impeded . | . . . Haulers Reinforced . | . . . Active Scanning Responses . | . . . Cargo Convoy Interrupts . | . . . Stealth | -11 -10 -10 --------- Run | Yrd Mat Min Distress Signals . | . . . Communications Jammed . | . . . Distress Signals . | . . . Times Spotted 19 | . 17 2 Peak Tracking Total 4 | . 4 2 Tactical Retreats 1 | . 1 . Traps | -11 -10 -10 ------- Run | Yrd Mat Min Traps Triggered 2 | . 2 . Indirectly . | . . . Trap Hack Attempts . | . . . Triggered . | . . . Disarmed . | . . . Reprogrammed . | . . . Reused . | . . . Traps Extracted . | . . . Installed . | . . . Triggered . | . . . Machines | -11 -10 -10 ---------- Run | Yrd Mat Min Machines Disabled 1 | . 1 . Max in Single Turn 1 | . 1 . Machines Repaired . | . . . Machines Dismantled . | . . . Machines Sabotaged . | . . . Overloaded Fab Kills . | . . . Hacking | -11 -10 -10 --------- Run | Yrd Mat Min Machines Accessed 10 | . 8 2 Terminals 7 | . 7 . Fabricators . | . . . Repair Stations 1 | . 1 . Recycling Units . | . . . Scanalyzers . | . . . Garrison Access . | . . . Total Hacks 19 | . 17 2 Successful 12 | . 10 2 Failed 7 | . 7 . Catastrophic . | . . . Database Lockouts . | . . . Manual 15 | . 15 . Terminals 15 | . 15 . Fabricators . | . . . Repair Stations 2 | . 2 . Recycling Units . | . . . Scanalyzers . | . . . Garrison Access . | . . . Terminal Hacks 3 | . 1 2 Open Door 2 | . . 2 Repair Station Index 1 | . 1 . Fabricator Hacks . | . . . Repair Station Hacks 2 | . 2 . Scan Component 1 | . 1 . Repair 1 | . 1 . Recycling Unit Hacks . | . . . Scanalyzer . | . . . Garrison Access Hacks . | . . . Unauthorized Hacks 7 | . 7 . Terminals 7 | . 7 . Botnet 6 | . 6 . Operators 1 | . 1 . Fabricators . | . . . Repair Stations . | . . . Recycling Units . | . . . Scanalyzers . | . . . Garrison Access . | . . . Data Cores Recovered 1 | . 1 . Used . | . . . Hacking Detections 5 | . 5 . Full Trace Events . | . . . Feedback Events . | . . . Feedback Blocked . | . . . Robot Schematics Acquired . | . . . Robots Built . | . . . Authchips . | . . . Time . | . . . Total Robot Build Rating . | . . . Part Schematics Acquired . | . . . Parts Built . | . . . Authchips . | . . . Time . | . . . Total Part Build Rating . | . . . Parts Repaired 1 | . 1 . Time 26 | . 26 . Parts Recycled . | . . . Recycled Matter . | . . . Retrieved Matter . | . . . Retrieved Components . | . . . Parts Scanalyzed . | . . . Part Schematics Acquired . | . . . Parts Damaged . | . . . Bothacking | -11 -10 -10 ------------ Run | Yrd Mat Min Used RIF Installer . | . . . Robots Hacked . | . . . Non-combat . | . . . Combat . | . . . Robot Hacks Applied . | . . . Relay Couplers Released . | . . . Fabnet Peak Effective % . | . . . Robots Rewired . | . . . Allies Hacked . | . . . Hacks Repelled . | . . . Allies | -11 -10 -10 -------- Run | Yrd Mat Min Total Allies . | . . . Largest Group . | . . . Highest-Rated Group . | . . . Highest-Rated Ally . | . . . Total Orders . | . . . Ally Attacks . | . . . Total Damage . | . . . Kills . | . . . Allies Corrupted . | . . . Allies Melted . | . . . Intel | -11 -10 -10 ------- Run | Yrd Mat Min Robot Analysis Total . | . . . Derelict Logs Recovered . | . . . Drone Launches . | . . . Drone Recoveries . | . . . Exploration | -11 -10 -10 ------------- Run | Yrd Mat Min Turns Passed 1402 | 129 953 320 Spaces Moved 816 | 68 558 190 Core 17 | 17 . . Treads 330 | . 140 190 Legs 469 | 51 418 . Wheels . | . . . Hover . | . . . Flight . | . . . Fastest Speed 50 | 50 120 160 Average Speed 136 | 122 130 160 Slowest Speed 200 | 200 160 160 Overloaded Moves . | . . . Propulsion Burnouts . | . . . Robots Hopped . | . . . Cave-ins Triggered 1 | . . 1 Exploration Rate (%) 45 | 4 83 49 Regions Visited 2 Branch Regions 1 Pre-discovered Areas . | . . . Known Exits Taken . | . . . Unknown Exits Taken 2 | 1 1 . Scrap Searched . | . . . Spaces Dug . | . . . Terrain Destroyed 34 | . 34 . Melee . | . . . Projectile . | . . . AOE 34 | . 34 . Terrain Rammed . | . . . Walls Destroyed . | . . . Machines Disabled . | . . . Actions | -11 -10 -10 --------- Run | Yrd Mat Min Total 1000 | 90 705 205 Wait 52 | . 51 1 Move 814 | 67 557 190 Hop . | . . . Pick Up 26 | 5 17 4 Fast Attach 11 | 6 4 1 Attach 4 | 1 3 . Detach 3 | . 3 . Swap 12 | . 10 2 Drop 16 | . 12 4 Fire 26 | 11 15 . Melee 33 | . 33 . Ram . | . . . Kick . | . . . Crush 3 | . . 3 Escape Stasis . | . . . Rewire . | . . . Trap . | . . . Miscellaneous . | . . . Route ------- -11/Scrapyard -10/Materials (discovered 4 exits: [*Mat x2] / *Min x2) -10/Mines History --------- Turn | Location | Event 2 | -11/Scrapyard | Met Revision 17 12 | -11/Scrapyard | Discovered new exit (range 15) 130 | -11/Scrapyard | Entered Materials 229 | -10/Materials | Discovered new exit (range 12) 308 | -10/Materials | Build established: Mutant 359 | -10/Materials | Repaired Hcp. Matter Pod 617 | -10/Materials | Discovered new exit (range 9) 869 | -10/Materials | Discovered new exit (range 16) 964 | -10/Materials | Discovered new exit (range 16) 1083 | -10/Materials | Entered Mines 1088 | -10/Mines | Assembled infested the area 1093 | -10/Mines | Assisted by a Guerilla fighting off Assembled 1255 | -10/Mines | Met a Derelict who couldn't figure out how to use a Trap Extractor 1338 | -10/Mines | Met a Derelict shopkeep closing up shop 1379 | -10/Mines | Crushed by falling debris 1379 | -10/Mines | Core integrity fell below 50% 1393 | -10/Mines | Core integrity fell below 20% 1403 | -10/Mines | Destroyed by D-53 Grenadier with Mini Grenade Launcher Last Messages --------------- 01366_ R-06 Scavenger collects Structural Scanner. 01368_ R-06 Scavenger collects Med. Storage Unit. 01369_ K-01 Serf destroyed. 01371_ T-07 Excavator destroyed. 01372_ R-06 Scavenger collects Wheel. 01373_ R-06 Scavenger destroyed. 01378_ The unstable cave ceiling collapses. 01379_ Crushed by falling debris. [Achievement: Unlikely Earthworm] 01379_ Imp. Targeting Computer destroyed. 01379_ System corrupted by crushing effect (+1). 01379_ Lgt. Ion Engine destroyed. 01379_ R-06 Scavenger collects Beamcaster. 01382_ The unstable cave ceiling collapses. 01388_ G-34 Mercenary destroyed. 01391_ The unstable cave ceiling collapses. 01392_ Ion Cannon destroyed. 01393_ 8Y74 LJI7F:#HYE7YJJEI 01395_ The unstable cave ceiling collapses. 01403_ Lgt. Treads destroyed. Map ----- +----------------------------------------------------+ | ?????????? #???? | | ??????????#### # ###########???? | | ?????????????? # ### #?????????????? | | ?????????????? #% # ## #?????????????? | | ??????????????# ## #?????????????? | | ??????????????# ## #?????????????? | | ???????####?### ### ##### #? | | ???????#"!### #? | | ???????#"! #? | | ???????#" ### #? | | ???????#"! ### ?? | | ???????#"! = #### #?? | | ???????#"!# %! #?## ## #??? | | ???????#### # #???###?# ##??? | | ??????????# # #???????? #???? | | ??????????# #????????? #???? | | ??????????# #????????? ???? | | ??????????# # ##?????????? ????? | | ??????????# #??????????? ????? | | ??????????# ??????????????????? | | ??????????# ##????????????????? | | ??????????# d ##???????????????? | | ??????????# ###?????????????? | | ??????????## d # #?????????????? | | ?????????##### ### #????????? | | ?????????# !%= @ #????????? | | ?????????# ## # # ######????????? | | ????????????### #?????????????? | | ?????????????### ###?????????????? | | ???????????????### ## #???????????????? | | ?????????????????#######???????????????? | | ???????????????????????????????????????? | | ???????????????????????????????????????? | | ???????????????????????????????????????? | | ???????????????????????????????????????? | | ???????????????????????????????????????? | | ???????????????????????????????????????? | | ???????????????????????????????????????? | | ???????????????????????????????????????? | | ???????????????????????????????????????? | | ???????????????????????????????????????? | | ???????????????????????????????????????? | | ???????????????????????????????????????? | | ???????????????????????????????????????? | | ???????????????????????????????????????? | | ???????????????????????????????????????? | | ???????????????????????????????????????? | | ???????????????????????????????????????? | | ???????????????????????????????????????? | | ???????????????????????????????????????? | +----------------------------------------------------+ Best States ------------- Heat Dissipation 25 Energy Generation 10 Energy Capacity 250 Matter Stores 300 Matter Capacity 300 Sight Range 16 Robot Scan Range 14 Terrain Scan Density 10 Evasion (%) 55 Targeting Accuracy 6 Recoil Reduction 2 Item Schematics ----------------- None Robot Schematics ------------------ None Fabricated ------------ Nothing Alien Tech Used ----------------- None Achievements -------------- Unlikely Earthworm Challenges ------------ None Game ------ Seed AerolevFireMapper Manual? 0 Play Time 00:17:09 Cumulative 20.7 hours Start 2024.06.04 @ 11:39:34 End 2024.06.04 @ 12:07:14 Sessions 1 Manual Loads 0 Difficulty Rogue Special Mode None Game No. 48 Rogue 48 Adventurer 0 Explorer 0 Win Type - Total 0 Types 0/0/0/0/0/0/0/0/0 Lore% 18 Gallery% 21 Achievement% 19 Wizard Run 0 Options --------- Layout 0 ASCII 0 Keyboard 0 Movement Mouse Keybinds 0 Fullscreen 2 Font 18/Terminus Map View 76x50 Zoom Use 0% Tactical HUD 1 Map Filters NONE Filters NONE Steam 1 RUN: a371826c-414e-41bc-b367-eeab15cc3091